[Event "FRA-ch Women 2018"]
[Site "Nimes"]
[Date "2018.08.19"]
[Round "2"]
[White "Milliet, Sophie"]
[Black "Haussernot, Cecile"]
[Result "1-0"]
[ECO "C02"]
[WhiteElo "2389"]
[BlackElo "2198"]
[Annotator "NA"]
[PlyCount "103"]
[EventDate "2018.08.18"]
[EventType "tourn"]
[EventCountry "FRA"]
[SourceTitle "playchess.com"]
[Source "ChessBase"]
[SourceQuality "1"]
[TimeControl "40/5400+30:1800+30"]

1. e4 {[%emt 0:02:31]} e6 {[%emt 0:00:00]} 2. d4 {[%emt 0:00:04]} d5 {[%emt 0:00:00]} 3. e5 {[%emt 0:00:03]} c5 {[%emt 0:00:00]} 4. c3 {[%emt 0:00:03]} Nc6 {[%emt 0:00:00]} 5. Nf3 {[%emt 0:00:04]} Qb6 {[%emt 0:00:00]} 6. a3 {[%emt 0:00:07]} Nh6 {[%emt 0:00:20]} 7. b4 {[%emt 0:00:19]} cxd4 {[%emt 0:00:17]} 8. Bxh6 {[%emt 0:00:05]} gxh6 {[%emt 0:00:07]} 9. cxd4 {[%emt 0:00:03]} Rg8 $16 {[%emt 0:22:57]} (9... Bd7 $11 {remains equal.}) 10. Nc3 {[%emt 0:32:04]} a6 {[%emt 0:37:08]} 11. Na4 {[%emt 0:03:08]} Qa7 {[%emt 0:00:19]} 12. Rb1 {[%emt 0:03:13]} Rg4 {[%emt 0:01:19]} 13. Nc5 {[%emt 0:00:36]} b6 {[%emt 0:07:30]} 14. Nb3 {[%emt 0:10:14]} Bd7 {[%emt 0:04:33]} 15. h3 {[%emt 0:00:51]} Rg7 {[%emt 0:08:15]} 16. g3 {[%emt 0:00:42]} a5 {[%emt 0:00:14]} 17. b5 {[%emt 0:00:26]} Ne7 {[%emt 0:01:01]} 18. a4 {[%emt 0:00:14]} Nf5 {[%emt 0:00:19]} 19. Bd3 {[%emt 0:02:08]} Bb4+ {[%emt 0:00:07]} 20. Kf1 {[%emt 0:12:54]} Kf8 {[%emt 0:03:27]} 21. Rc1 {[%emt 0:02:05]} Kg8 {[%emt 0:00:38]} 22. Rc2 {[%emt 0:02:10]} Ba3 {[%emt 0:04:49]} 23. g4 {[%emt 0:06:34]} Ne7 {[%emt 0:00:27]} 24. Qa1 {[%emt 0:00:08]} Bb4 {[%emt 0:00:13]} 25. Qc1 {[%emt 0:00:05]} Rc8 {[%emt 0:00:26]} 26. Rxc8+ {[%emt 0:01:00]} Nxc8 {[%emt 0:00:15]} 27. Qxh6 {[%emt 0:01:24]} Qc7 {[%emt 0:00:15]} 28. Qc1 {[%emt 0:01:28]} Qd8 {[%emt 0:00:25]} 29. g5 {[%emt 0:01:29]} Ne7 {[%emt 0:00:39]} 30. Nh2 {[%emt 0:03:32]} Nf5 {[%emt 0:00:10]} 31. Ng4 {[%emt 0:00:11]} Kh8 {[%emt 0:00:53]} 32. Nf6 {[%emt 0:04:38]} Be7 {[%emt 0:00:21]} 33. h4 {[%emt 0:01:09]} Bxf6 {[%emt 0:00:34]} 34. exf6 {[%emt 0:01:08]} Rg8 {[%emt 0:00:06]} 35. Bxf5 {[%emt 0:05:05]} exf5 {[%emt 0:00:02]} 36. Nd2 {[%emt 0:03:45]} Qe8 {[%emt 0:01:39]} 37. Nf3 {[%emt 0:01:31]} Qe4 {[%emt 0:00:40]} 38. Qe3 {[%emt 0:00:05]} f4 {[%emt 0:00:51]} 39. Qxe4 {[%emt 0:00:10]} dxe4 {[%emt 0:00:01]} 40. Ne5 {[%emt 0:00:09]} Be6 {[%emt 0:00:03]} 41. Ke2 {[%emt 0:07:09]} Rd8 {[%emt 0:01:52]} 42. Rc1 {[%emt 0:04:10]} Rxd4 {[%emt 0:07:55]} 43. Nxf7+ {[%emt 0:00:31]} Kg8 {[%emt 0:00:04]} 44. Nh6+ {[%emt 0:01:04]} Kf8 {[%emt 0:00:03]} 45. h5 {[%emt 0:01:56]} Ke8 {[%emt 0:05:08]} 46. g6 hxg6 {[%emt 0:00:18]} 47. hxg6 {[%emt 0:00:59]} Rxa4 {[%emt 0:00:35]} 48. g7 {[%emt 0:04:00]} Ra2+ {[%emt 0:02:09]} 49. Ke1 {[%emt 0:09:48]} e3 {[%emt 0:02:26]} 50. fxe3 {[%emt 0:00:12]} f3 {[%emt 0:00:10]} 51. f7+ {[%emt 0:03:48]} Kd7 {[%emt 0:00:12]} 52. f8=N+ {[%emt 0:00:25]} 1-0

[Event "FRA-ch Women 2018"]
[Site "Nimes"]
[Date "2018.08.19"]
[Round "2"]
[White "Guichard, Pauline"]
[Black "Navrotescu, Andreea-C"]
[Result "1-0"]
[ECO "A04"]
[WhiteElo "2365"]
[BlackElo "2247"]
[Annotator "NA"]
[PlyCount "81"]
[EventDate "2018.08.18"]
[EventType "tourn"]
[EventCountry "FRA"]
[SourceTitle "playchess.com"]
[Source "ChessBase"]
[SourceQuality "1"]
[TimeControl "40/5400+30:1800+30"]

1. Nf3 {[%emt 0:00:00]} c5 {[%emt 0:00:03]} 2. c4 {[%emt 0:00:00]} Nc6 {[%emt 0:00:00]} 3. b3 {[%emt 0:00:00]} e5 {[%emt 0:01:13]} 4. Bb2 {[%emt 0:01:39]} d6 {[%emt 0:01:19]} 5. g3 {[%emt 0:01:07]} g6 {[%emt 0:00:41]} 6. Bg2 {[%emt 0:01:12]} Bg7 {[%emt 0:00:13]} 7. d3 {[%emt 0:00:45]} Nge7 {[%emt 0:00:23]} 8. Nc3 {[%emt 0:00:31]} O-O {[%emt 0:00:35]} 9. O-O {[%emt 0:00:19]} Rb8 {[%emt 0:00:50]} 10. Ne1 {[%emt 0:00:54]} Be6 {[%emt 0:00:23]} 11. Nd5 {[%emt 0:11:34]} b5 {[%emt 0:04:21]} 12. Nc2 {[%emt 0:02:50]} f5 {[%emt 0:02:06]} 13. f4 {[%emt 0:01:54]} bxc4 {[%emt 0:02:48]} 14. dxc4 {[%emt 0:00:47]} e4 {[%emt 0:00:08]} 15. Bxg7 {[%emt 0:05:29]} Kxg7 {[%emt 0:00:44]} 16. Nce3 {[%emt 0:00:21]} Bxd5 {[%emt 0:10:31]} 17. cxd5 {[%emt 0:07:08]} Nd4 {[%emt 0:00:48]} 18. Qd2 $11 {[%emt 0:01:30]} Qb6 {[%emt 0:09:59]} 19. g4 {[%emt 0:04:20]} Qb4 {[%emt 0:09:54]} 20. Qb2 {[%emt 0:01:07]} Kg8 {[%emt 0:04:51]} 21. Kh1 {[%emt 0:07:01]} a5 {[%emt 0:02:36]} 22. Rac1 {[%emt 0:02:39]} a4 {[%emt 0:02:56]} 23. gxf5 {[%emt 0:05:24]} gxf5 {[%emt 0:12:22]} 24. Rg1 {[%emt 0:00:15]} a3 {[%emt 0:02:08]} 25. Bf1+ {[%emt 0:04:24]} Ng6 {[%emt 0:03:41]} 26. Qa1 {[%emt 0:04:10]} Qd2 {[%emt 0:01:07]} 27. Nc4 {[%emt 0:01:28]} Qxf4 {[%emt 0:13:48]} 28. e3 {[%emt 0:00:16]} Qh6 {[%emt 0:00:27]} 29. exd4 {[%emt 0:01:01]} cxd4 {[%emt 0:00:11]} 30. Nxd6 {[%emt 0:03:33]} d3 {[%emt 0:01:05]} 31. Rc7 {[%emt 0:03:05]} Rbd8 {[%emt 0:06:39]} 32. Qe5 {[%emt 0:01:47]} d2 {[%emt 0:00:26]} 33. Be2 {[%emt 0:00:33]} f4 {[%emt 0:00:18]} 34. Qe6+ {[%emt 0:08:01]} Kh8 {[%emt 0:00:03]} 35. Nf7+ {[%emt 0:00:24]} Rxf7 {[%emt 0:00:09]} 36. Rxf7 {[%emt 0:00:23]} f3 {[%emt 0:01:43]} 37. Bc4 {[%emt 0:02:51]} Qh4 {[%emt 0:00:41]} 38. d6 {[%emt 0:09:56]} Rg8 {[%emt 0:01:01]} 39. Rxf3 {[%emt 0:02:24]} Rd8 {[%emt 0:00:36]} 40. Rh3 {[%emt 0:00:49]} d1=Q {[%emt 0:01:10]} 41. Rxd1 {[%emt 0:30:15]} 1-0

[Event "FRA-ch Women 2018"]
[Site "Nimes"]
[Date "2018.08.19"]
[Round "2"]
[White "Guichard, Pauline"]
[Black "Navrotescu, Andreea-Cristiana"]
[Result "*"]
[ECO "A04"]
[WhiteElo "2365"]
[BlackElo "2247"]
[Annotator "NA"]
[PlyCount "48"]
[EventDate "2018.08.18"]
[EventType "tourn"]
[EventCountry "FRA"]
[SourceTitle "playchess.com"]
[Source "ChessBase"]
[SourceQuality "1"]
[TimeControl "40/5400+30:1800+30"]

1. Nf3 {[%emt 0:00:00]} c5 {[%emt 0:00:03]} 2. c4 {[%emt 0:00:00]} Nc6 {[%emt 0:00:00]} 3. b3 {[%emt 0:00:00]} e5 {[%emt 0:01:13]} 4. Bb2 {[%emt 0:01:39]} d6 {[%emt 0:01:19]} 5. g3 {[%emt 0:01:07]} g6 {[%emt 0:00:41]} 6. Bg2 {[%emt 0:01:12]} Bg7 {[%emt 0:00:13]} 7. d3 {[%emt 0:00:45]} Nge7 {[%emt 0:00:23]} 8. Nc3 {[%emt 0:00:31]} O-O {[%emt 0:00:35]} 9. O-O {[%emt 0:00:19]} Rb8 {[%emt 0:00:50]} 10. Ne1 {[%emt 0:00:54]} Be6 {[%emt 0:00:23]} 11. Nd5 {[%emt 0:11:34]} b5 {[%emt 0:04:21]} 12. Nc2 {[%emt 0:02:50]} f5 {[%emt 0:02:06]} 13. f4 {[%emt 0:01:54]} bxc4 {[%emt 0:02:48]} 14. dxc4 {[%emt 0:00:47]} e4 {[%emt 0:00:08]} 15. Bxg7 {[%emt 0:05:29]} Kxg7 {[%emt 0:00:44]} 16. Nce3 {[%emt 0:00:21]} Bxd5 {[%emt 0:10:31]} 17. cxd5 {[%emt 0:07:08]} Nd4 {[%emt 0:00:48]} 18. Qd2 $11 {[%emt 0:01:30]} Qb6 {[%emt 0:09:59]} 19. g4 {[%emt 0:04:20]} Qb4 {[%emt 0:09:54]} 20. Qb2 {[%emt 0:01:07]} Kg8 {[%emt 0:04:51]} 21. Kh1 {[%emt 0:07:01]} a5 {[%emt 0:02:36]} 22. Rac1 {[%emt 0:02:39]} a4 {[%emt 0:02:56]} 23. gxf5 {[%emt 0:05:24]} gxf5 {[%emt 0:12:22]} 24. Rg1 {[%emt 0:00:15]} a3 {[%emt 0:02:08]} *

[Event "FRA-ch Women 2018"]
[Site "Nimes"]
[Date "2018.08.19"]
[Round "2"]
[White "Benmesbah, Natacha"]
[Black "Afraoui, Anaelle"]
[Result "1-0"]
[ECO "B31"]
[WhiteElo "2255"]
[BlackElo "2041"]
[Annotator "NA"]
[PlyCount "127"]
[EventDate "2018.08.18"]
[EventType "tourn"]
[EventCountry "FRA"]
[SourceTitle "playchess.com"]
[Source "ChessBase"]
[SourceQuality "1"]
[TimeControl "40/5400+30:1800+30"]

1. e4 {[%emt 0:06:36]} c5 {[%emt 0:00:00]} 2. Nf3 {[%emt 0:00:15]} Nc6 {[%emt 0:00:00]} 3. Bb5 {[%emt 0:00:11]} g6 {[%emt 0:00:00]} 4. O-O {[%emt 0:00:05]} Bg7 {[%emt 0:00:00]} 5. Re1 {[%emt 0:00:06]} Nf6 {[%emt 0:00:12]} 6. e5 {[%emt 0:00:12]} Nd5 {[%emt 0:00:05]} 7. Nc3 {[%emt 0:00:04]} Nc7 {[%emt 0:00:08]} 8. Bxc6 {[%emt 0:00:04]} dxc6 {[%emt 0:00:10]} 9. Ne4 {[%emt 0:00:45]} Ne6 {[%emt 0:00:07]} 10. d3 {[%emt 0:00:30]} O-O {[%emt 0:00:07]} 11. Be3 {[%emt 0:00:18]} b6 {[%emt 0:00:08]} 12. Qd2 {[%emt 0:00:45]} f5 {[%emt 0:00:22]} 13. exf6 {[%emt 0:03:27] B31: Sicilian: 2...Nc6 3 Bb5 g6} exf6 {[%emt 0:00:08]} 14. Bh6 {[%emt 0:00:41]} a5 {[%emt 0:00:43]} 15. a4 {[%emt 0:02:11]} Ra7 {[%emt 0:02:59]} 16. Bxg7 {[%emt 0:03:52]} Kxg7 {[%emt 0:04:01]} 17. Qc3 {[%emt 0:03:30]} Nc7 $146 {[%emt 0:14:00]} (17... Re8 $11 {hält das Gleichgewicht.}) ({Predecessor:} 17... Nf4 18. d4 Nd5 19. Qb3 f5 20. Ned2 cxd4 21. Nxd4 {1-0 (30) Kveinys,A (2530)-Ramesh,R (2475) Bled 2002}) 18. h3 {[%emt 0:14:37]} ({Günstiger ist} 18. d4 $14) 18... Nd5 {[%emt 0:03:16]} 19. Qd2 $11 {[%emt 0:00:06]} Re7 {[%emt 0:03:29]} 20. d4 {[%emt 0:02:45]} Rfe8 {[%emt 0:12:40]} 21. Ng3 {[%emt 0:03:37]} c4 {[%emt 0:04:00]} 22. Rxe7+ {[%emt 0:09:15]} Rxe7 {[%emt 0:01:40]} 23. Re1 {[%emt 0:00:12]} Rxe1+ {[%emt 0:07:18]} 24. Qxe1 {[%emt 0:02:34]} Qe7 {[%emt 0:06:47]} 25. Qxe7+ {[%emt 0:05:48]} Nxe7 {[%emt 0:00:09]} 26. Nd2 {[%emt 0:00:52]} b5 {[%emt 0:03:57]} 27. Nge4 {[%emt 0:00:42]} Nd5 {[%emt 0:07:34]} 28. c3 {[%emt 0:12:55]} Nf4 {[%emt 0:06:55]} 29. Nc5 {[%emt 0:07:06]} Bf5 {[%emt 0:04:24]} 30. f3 {[%emt 0:05:47]} Bc2 {[%emt 0:04:01]} 31. h4 {[%emt 0:02:54]} Kf7 {[%emt 0:02:43]} 32. Kf2 {[%emt 0:04:21]} Ne6 {[%emt 0:03:14]} 33. axb5 {[%emt 0:03:42]} Nxc5 {[%emt 0:02:11]} 34. dxc5 {[%emt 0:00:03]} cxb5 {[%emt 0:00:11]} 35. Ke3 {[%emt 0:00:04]} Ke6 {[%emt 0:01:16]} 36. Kd4 {[%emt 0:00:04]} f5 {[%emt 0:03:25]} 37. Nf1 {[%emt 0:00:35]} f4 {[%emt 0:03:34]} 38. Nd2 {[%emt 0:00:59]} h6 {[%emt 0:00:42]} 39. Nf1 {[%emt 0:03:25]} Bd3 {[%emt 0:00:38]} 40. Nd2 {[%emt 0:00:04]} Be2 {[%emt 0:01:12]} 41. Ne4 {[%emt 0:15:19]} Bf1 {[%emt 0:05:51]} 42. Nd6 {[%emt 0:01:06]} Bxg2 {[%emt 0:00:56]} 43. Ke4 {[%emt 0:00:03]} g5 {[%emt 0:06:15]} 44. Nxb5 {[%emt 0:04:39]} Bh3 {[%emt 0:08:35]} 45. Nd4+ {[%emt 0:01:20]} Kd7 {[%emt 0:01:11]} 46. Ke5 {[%emt 0:03:23]} gxh4 {[%emt 0:03:25]} 47. Kxf4 {[%emt 0:00:05]} Kc7 {[%emt 0:00:20]} 48. Ke3 {[%emt 0:00:10]} Bd7 {[%emt 0:01:57]} 49. Kf2 {[%emt 0:00:06]} h3 {[%emt 0:02:08]} 50. Kg3 {[%emt 0:00:05]} h5 {[%emt 0:00:27]} 51. f4 {[%emt 0:00:34]} h4+ {[%emt 0:01:02]} 52. Kh2 {[%emt 0:00:05]} Bg4 {[%emt 0:00:50]} 53. f5 {[%emt 0:01:07]} Kd7 {[%emt 0:00:14]} 54. c6+ {[%emt 0:02:35]} Ke7 {[%emt 0:01:46]} 55. c7 {[%emt 0:02:46]} Kd7 {[%emt 0:00:30]} 56. f6 {[%emt 0:00:04]} Bh5 {[%emt 0:02:40]} 57. Nb5 {[%emt 0:00:05]} Bg6 {[%emt 0:00:58]} 58. Kxh3 {[%emt 0:00:21]} Bf7 {[%emt 0:00:50]} 59. c8=Q+ {[%emt 0:00:18]} Kxc8 {[%emt 0:00:10]} 60. Nd6+ {[%emt 0:00:04]} Kd7 {[%emt 0:00:06]} 61. Nxf7 {[%emt 0:00:05]} Ke6 {[%emt 0:00:04]} 62. Ne5 {[%emt 0:00:05]} Kxf6 {[%emt 0:00:28]} 63. Nxc4 {[%emt 0:00:04]} a4 {[%emt 0:00:12]} 64. Nb6 {[%emt 0:00:12]} 1-0

[Event "FRA-ch Women 2018"]
[Site "Nimes"]
[Date "2018.08.19"]
[Round "2"]
[White "Safranska, Anda"]
[Black "Leconte, Maria"]
[Result "1/2-1/2"]
[ECO "A06"]
[WhiteElo "2193"]
[BlackElo "2224"]
[Annotator "NA"]
[PlyCount "69"]
[EventDate "2018.08.18"]
[EventType "tourn"]
[EventCountry "FRA"]
[SourceTitle "playchess.com"]
[Source "ChessBase"]
[SourceQuality "1"]
[TimeControl "40/5400+30:1800+30"]

1. Nf3 {[%emt 0:00:00]} d5 {[%emt 0:00:18]} 2. g3 {[%emt 0:00:00]} c6 {[%emt 0:00:20]} 3. Bg2 {[%emt 0:00:00]} Bg4 {[%emt 0:00:23]} 4. d3 {[%emt 0:00:22]} Nd7 {[%emt 0:00:32]} 5. O-O {[%emt 0:00:08]} Ngf6 {[%emt 0:00:25]} 6. Qe1 {[%emt 0:00:33]} Qc7 {[%emt 0:05:36]} 7. e4 {[%emt 0:00:51]} dxe4 {[%emt 0:00:16]} 8. dxe4 {[%emt 0:00:05]} e5 {[%emt 0:00:03]} 9. h3 {[%emt 0:00:52]} Bh5 {[%emt 0:00:50]} 10. Nbd2 {[%emt 0:00:23]} Nc5 {[%emt 0:05:02] LiveBook: 5 Games} 11. b3 {[%emt 0:04:45]} Nfd7 {[%emt 0:05:20]} 12. Bb2 {[%emt 0:06:00]} f6 {[%emt 0:01:47]} 13. a3 {[%emt 0:03:50]} Bf7 {[%emt 0:06:08]} 14. Kh1 {[%emt 0:01:49]} O-O-O {[%emt 0:05:24]} 15. Qe2 $15 {[%emt 0:04:32]} Be7 {[%emt 0:11:17]} 16. a4 {[%emt 0:04:12]} Na6 {[%emt 0:03:34]} 17. Nc4 {[%emt 0:06:25]} Nf8 {[%emt 0:03:56]} 18. h4 {[%emt 0:12:38]} Be6 {[%emt 0:02:04]} 19. Kh2 {[%emt 0:00:20]} h5 {[%emt 0:03:30]} 20. Rfd1 {[%emt 0:06:32]} Rxd1 {[%emt 0:05:41]} 21. Rxd1 {[%emt 0:01:07]} Nd7 {[%emt 0:00:08]} 22. Bh3 {[%emt 0:02:01]} Bxh3 {[%emt 0:01:25]} 23. Kxh3 {[%emt 0:00:04]} Rd8 {[%emt 0:08:58]} 24. a5 {[%emt 0:15:17]} Ndc5 {[%emt 0:01:10]} 25. Rxd8+ {[%emt 0:02:49]} Qxd8 {[%emt 0:00:17]} 26. Kg2 {[%emt 0:00:09]} Qd7 {[%emt 0:03:28]} 27. Ne1 {[%emt 0:04:05]} g6 {[%emt 0:01:07]} 28. f3 {[%emt 0:00:42]} Ne6 {[%emt 0:08:50]} 29. c3 {[%emt 0:02:03]} g5 {[%emt 0:02:12]} 30. hxg5 {[%emt 0:01:22]} Nxg5 {[%emt 0:00:07]} 31. Kf1 {[%emt 0:00:38]} Qh3+ {[%emt 0:02:54]} 32. Qg2 {[%emt 0:00:05]} Qd7 {[%emt 0:00:46]} 33. Qd2 {[%emt 0:08:58]} Qh3+ {[%emt 0:01:09]} 34. Qg2 {[%emt 0:00:05]} Qd7 {[%emt 0:00:06]} 35. Qd2 {[%emt 0:00:28]} 1/2-1/2

[Event "FRA-ch Women 2018"]
[Site "Nimes"]
[Date "2018.08.19"]
[Round "2"]
[White "Monpeurt, Cyrielle"]
[Black "Bollengier, Andreea"]
[Result "0-1"]
[ECO "B06"]
[WhiteElo "2175"]
[BlackElo "2219"]
[Annotator "NA"]
[PlyCount "114"]
[EventDate "2018.08.18"]
[EventType "tourn"]
[EventCountry "FRA"]
[SourceTitle "playchess.com"]
[Source "ChessBase"]
[SourceQuality "1"]
[TimeControl "40/5400+30:1800+30"]

1. e4 {[%emt 0:00:00]} g6 {[%emt 0:00:00]} 2. d4 {[%emt 0:00:00]} Bg7 {[%emt 0:00:00]} 3. Nc3 {[%emt 0:00:25]} d6 {[%emt 0:00:02]} 4. Bg5 {[%emt 0:00:55]} a6 {[%emt 0:00:37]} 5. f4 {[%emt 0:00:33]} Nc6 {[%emt 0:08:58]} 6. Nf3 {[%emt 0:09:11]} Bg4 {[%emt 0:00:35]} 7. e5 {[%emt 0:03:03]} (7. d5 $11 Nd4 8. Kf2) 7... dxe5 {[%emt 0:18:25]} 8. dxe5 {[%emt 0:00:19]} Qxd1+ {[%emt 0:03:50]} 9. Rxd1 $15 {[%emt 0:00:25]} h6 {[%emt 0:11:30]} 10. Bh4 {[%emt 0:02:45]} Bxf3 {[%emt 0:10:49]} 11. gxf3 {[%emt 0:00:07]} g5 {[%emt 0:00:06]} 12. fxg5 {[%emt 0:03:28]} Nxe5 {[%emt 0:00:04]} 13. Kf2 {[%emt 0:07:52]} Ng6 {[%emt 0:00:45]} 14. Bg3 {[%emt 0:03:37]} Bxc3 {[%emt 0:06:08]} 15. bxc3 {[%emt 0:00:05]} hxg5 {[%emt 0:00:03]} 16. Bxc7 Rc8 17. Ba5 {[%emt 0:02:00]} Nf6 {[%emt 0:01:05]} 18. c4 {[%emt 0:09:28]} Ne5 {[%emt 0:17:44]} 19. h4 {[%emt 0:23:56]} gxh4 {[%emt 0:01:42]} 20. Bh3 {[%emt 0:01:26]} e6 {[%emt 0:02:36]} 21. Bc3 {[%emt 0:00:48]} Rh5 {[%emt 0:02:43]} 22. Rhe1 {[%emt 0:03:04]} Ned7 {[%emt 0:06:42]} 23. Rd4 {[%emt 0:05:04]} b5 {[%emt 0:01:51]} 24. Rd6 {[%emt 0:01:11]} Rxc4 {[%emt 0:00:34]} 25. Bxe6 {[%emt 0:04:55]} fxe6 {[%emt 0:00:47]} 26. Rexe6+ {[%emt 0:00:19]} Kf7 {[%emt 0:00:14]} 27. Bxf6 {[%emt 0:00:17]} Rxc2+ {[%emt 0:00:19]} 28. Ke3 {[%emt 0:00:54]} Nxf6 {[%emt 0:00:25]} 29. Rxf6+ {[%emt 0:00:04]} Kg7 {[%emt 0:00:12]} 30. Rg6+ {[%emt 0:03:18]} Kh7 {[%emt 0:00:05]} 31. Rg4 {[%emt 0:00:17]} Rc7 {[%emt 0:01:27]} 32. Rdd4 {[%emt 0:00:29]} h3 {[%emt 0:00:14]} 33. Rh4 {[%emt 0:00:38]} Rcc5 {[%emt 0:01:11]} 34. Kf2 {[%emt 0:02:48]} h2 {[%emt 0:00:30]} 35. Kg2 {[%emt 0:00:35]} Rc2+ {[%emt 0:00:46]} 36. Kh1 {[%emt 0:00:04]} Rxh4 {[%emt 0:02:33]} 37. Rxh4+ Kg6 38. a4 {[%emt 0:01:08]} Rc4 {[%emt 0:01:37]} 39. f4 {[%emt 0:00:05]} Rxa4 {[%emt 0:00:19]} 40. Kxh2 {[%emt 0:00:15]} Kf5 {[%emt 0:00:09]} 41. Kg3 {[%emt 0:30:31]} Ra3+ {[%emt 0:30:18]} 42. Kf2 {[%emt 0:00:13]} Ra2+ {[%emt 0:02:04]} 43. Ke3 {[%emt 0:00:10]} Ra3+ {[%emt 0:00:02]} 44. Kd2 {[%emt 0:00:51]} b4 {[%emt 0:00:00]} 45. Rh5+ {[%emt 0:00:00]} Ke4 {[%emt 0:00:00]} 46. f5 {[%emt 0:00:00]} Ke5 {[%emt 0:00:00]} 47. Kc2 {[%emt 0:00:00]} a5 {[%emt 0:00:00]} 48. Kb2 {[%emt 0:00:00]} Kf6 {[%emt 0:00:00]} 49. Kc2 {[%emt 0:00:00]} Rf3 {[%emt 0:00:00]} 50. Rh6+ {[%emt 0:00:00]} Kg5 {[%emt 0:00:00]} 51. Rg6+ {[%emt 0:00:00]} Kxf5 {[%emt 0:00:00]} 52. Ra6 {[%emt 0:00:00]} Ra3 {[%emt 0:00:00]} 53. Kb2 {[%emt 0:00:00]} Ke5 {[%emt 0:00:00]} 54. Rb6 {[%emt 0:00:00]} Kd5 {[%emt 0:00:00]} 55. Rb8 {[%emt 0:00:00]} Kc4 {[%emt 0:00:00]} 56. Rc8+ {[%emt 0:00:00]} Kb5 {[%emt 0:00:00]} 57. Rb8+ {[%emt 0:00:00]} Ka4 {[%emt 0:00:00]} 0-1

[Event "FRA-ch Women 2018"]
[Site "Nimes"]
[Date "2018.08.20"]
[Round "3"]
[White "Navrotescu, Andreea-Cristiana"]
[Black "Benmesbah, Natacha"]
[Result "1-0"]
[ECO "A16"]
[WhiteElo "2247"]
[BlackElo "2255"]
[Annotator "NA"]
[PlyCount "97"]
[EventDate "2018.08.18"]
[EventType "tourn"]
[EventCountry "FRA"]
[SourceTitle "playchess.com"]
[Source "ChessBase"]
[SourceQuality "1"]
[TimeControl "40/5400+30:1800+30"]

1. c4 {[%emt 0:00:00]} Nf6 {[%emt 0:04:37]} 2. Nc3 {[%emt 0:00:00]} c5 {[%emt 0:00:24]} 3. e4 {[%emt 0:00:00]} d6 {[%emt 0:03:53]} 4. g3 {[%emt 0:00:21]} e6 {[%emt 0:03:41]} 5. Bg2 {[%emt 0:00:40]} Be7 {[%emt 0:00:14]} 6. Nge2 {[%emt 0:00:42]} a6 {[%emt 0:02:01]} 7. O-O {[%emt 0:03:05]} Qc7 {[%emt 0:00:11]} 8. b3 {[%emt 0:01:11]} Nbd7 {[%emt 0:04:33]} 9. d4 {[%emt 0:12:30]} cxd4 {[%emt 0:00:04]} 10. Nxd4 {[%emt 0:00:05]} Rb8 {[%emt 0:05:30]} 11. Be3 {[%emt 0:07:07]} b6 {[%emt 0:04:08]} 12. Rc1 {[%emt 0:01:46]} Bb7 {[%emt 0:04:31]} 13. Qe2 {[%emt 0:08:51]} Rc8 {[%emt 0:08:10]} 14. f4 {[%emt 0:19:28]} Qb8 {[%emt 0:12:26]} 15. Bf2 {[%emt 0:04:15]} O-O {[%emt 0:04:40]} 16. f5 {[%emt 0:02:36]} e5 {[%emt 0:02:36]} 17. Nc2 {[%emt 0:01:28]} b5 {[%emt 0:02:28]} 18. Ne3 {[%emt 0:00:27]} Nc5 {[%emt 0:05:03]} 19. Ned5 {[%emt 0:04:22]} Bxd5 {[%emt 0:06:30]} 20. exd5 {[%emt 0:04:27]} bxc4 {[%emt 0:01:51]} 21. bxc4 {[%emt 0:04:09]} Qb4 {[%emt 0:01:41]} 22. g4 {[%emt 0:00:16]} Nfd7 {[%emt 0:02:05]} 23. h4 {[%emt 0:02:30]} Nb6 {[%emt 0:01:30]} 24. Nb1 {[%emt 0:03:17]} Nca4 {[%emt 0:03:44]} 25. Nd2 {[%emt 0:00:22]} Nb2 {[%emt 0:02:56]} 26. Rb1 {[%emt 0:01:08]} N6a4 {[%emt 0:00:11]} 27. Rfc1 {[%emt 0:02:03]} Rb8 {[%emt 0:04:30]} 28. Nb3 {[%emt 0:04:18]} Qa3 {[%emt 0:01:35]} 29. Na5 {[%emt 0:04:44]} Bd8 {[%emt 0:03:10]} 30. Nc6 {[%emt 0:00:31]} Rb7 {[%emt 0:00:39]} 31. Qc2 {[%emt 0:03:05]} f6 {[%emt 0:03:07]} 32. g5 {[%emt 0:00:52]} Bb6 {[%emt 0:01:11]} 33. Bxb6 {[%emt 0:02:09]} Rxb6 {[%emt 0:00:03]} 34. Kh2 {[%emt 0:00:24]} fxg5 {[%emt 0:01:01]} 35. hxg5 {[%emt 0:00:58]} Qe3 {[%emt 0:00:15]} 36. c5 {[%emt 0:00:46]} Nxc5 {[%emt 0:01:33]} 37. f6 {[%emt 0:01:47]} Qxg5 {[%emt 0:00:30]} 38. Rf1 {[%emt 0:01:22]} Qh6+ {[%emt 0:00:49]} 39. Bh3 {[%emt 0:00:15]} Rxf6 {[%emt 0:00:21]} 40. Ne7+ {[%emt 0:00:20]} Kf7 {[%emt 0:00:21]} 41. Nf5 {[%emt 0:30:45]} Qg5 {[%emt 0:11:55]} 42. Rxb2 {[%emt 0:00:00]} Rxb2 {[%emt 0:00:08]} 43. Qxb2 {[%emt 0:00:00]} e4 {[%emt 0:00:15]} 44. Nxd6+ {[%emt 0:00:00]} Ke7 {[%emt 0:00:11]} 45. Nf5+ {[%emt 0:00:00]} Kf7 {[%emt 0:00:18]} 46. Qd4 {[%emt 0:00:00]} e3 {[%emt 0:01:05]} 47. Qxc5 {[%emt 0:00:00]} e2 {[%emt 0:00:04]} 48. Qe7+ {[%emt 0:00:00]} Kg8 {[%emt 0:01:18]} 49. Qxe2 {[%emt 0:00:00]} 1-0

[Event "FRA-ch Women 2018"]
[Site "Nimes"]
[Date "2018.08.20"]
[Round "3"]
[White "Leconte, Maria"]
[Black "Monpeurt, Cyrielle"]
[Result "1/2-1/2"]
[ECO "A07"]
[WhiteElo "2224"]
[BlackElo "2175"]
[Annotator "NA"]
[PlyCount "72"]
[EventDate "2018.08.18"]
[EventType "tourn"]
[EventCountry "FRA"]
[SourceTitle "playchess.com"]
[Source "ChessBase"]
[SourceQuality "1"]
[TimeControl "40/5400+30:1800+30"]

1. Nf3 {[%emt 0:00:00]} d5 {[%emt 0:00:00]} 2. g3 {[%emt 0:00:28]} Nf6 {[%emt 0:00:18]} 3. Bg2 {[%emt 0:00:09]} c6 {[%emt 0:01:15]} 4. O-O {[%emt 0:00:52]} Bg4 {[%emt 0:00:59]} 5. b3 {[%emt 0:02:04]} e6 {[%emt 0:01:10]} 6. Bb2 {[%emt 0:00:47]} Bxf3 {[%emt 0:05:18]} 7. exf3 {[%emt 0:04:42]} Be7 {[%emt 0:02:03]} 8. d3 {[%emt 0:02:18]} O-O {[%emt 0:00:24]} 9. Nd2 {[%emt 0:00:42]} a5 {[%emt 0:07:23]} 10. a4 {[%emt 0:12:42]} Nfd7 {[%emt 0:07:18]} 11. f4 {[%emt 0:21:45]} Bf6 {[%emt 0:00:26]} 12. d4 {[%emt 0:01:08]} c5 {[%emt 0:06:27]} 13. Nf3 {[%emt 0:00:07]} Nc6 {[%emt 0:02:45]} 14. c3 {[%emt 0:12:56]} Qb6 {[%emt 0:07:03]} 15. Ne5 {[%emt 0:01:42]} Rfd8 {[%emt 0:05:08]} 16. Re1 {[%emt 0:01:38]} Bxe5 {[%emt 0:06:19]} 17. fxe5 {[%emt 0:00:39]} Rac8 {[%emt 0:00:46]} 18. f4 {[%emt 0:04:41]} cxd4 {[%emt 0:05:26]} 19. cxd4 {[%emt 0:00:04]} Nb4 {[%emt 0:00:04]} 20. Re2 {[%emt 0:00:09]} Rc6 {[%emt 0:01:57]} 21. Rc1 {[%emt 0:06:40]} Rdc8 {[%emt 0:01:14]} 22. Rxc6 {[%emt 0:00:20]} Rxc6 {[%emt 0:01:42]} 23. g4 {[%emt 0:00:20]} Qc7 {[%emt 0:06:33]} 24. f5 {[%emt 0:01:29]} Rc2 {[%emt 0:02:01]} 25. Bf1 {[%emt 0:05:45]} Rxe2 {[%emt 0:01:17]} 26. Bxe2 {[%emt 0:00:07]} Nb8 {[%emt 0:03:50]} 27. Bb5 {[%emt 0:05:03]} Qc8 {[%emt 0:06:55]} 28. f6 {[%emt 0:01:18]} Qc2 {[%emt 0:05:51]} 29. Qxc2 {[%emt 0:00:24]} Nxc2 30. Bc3 {[%emt 0:00:22]} Nb4 {[%emt 0:00:33]} 31. Bxb4 {[%emt 0:05:07]} axb4 {[%emt 0:00:05]} 32. Kf2 {[%emt 0:00:40]} g5 {[%emt 0:02:39]} 33. a5 {[%emt 0:02:04]} h6 {[%emt 0:00:26]} 34. Ke3 {[%emt 0:00:07]} Kf8 {[%emt 0:01:00]} 35. Kd3 {[%emt 0:00:28]} Kg8 {[%emt 0:00:56]} 36. Ke3 {[%emt 0:02:08]} Kf8 {[%emt 0:00:06] Ke4} 1/2-1/2